Cogmind - Beta 16 @@@ ROGUE MODE // 2025.10.23 @ 16:44:41 Player: FloorSandwich Result: Self-destructed Performance ------------- Evolutions (2) 1000 Regions Visited (3) 600 Robots Destroyed (52) 260 Value Destroyed (1759) 1759 Prototype IDs (2) 40 Alien Tech Used (0) 0 Bonus (79) 79 TOTAL SCORE: 3738 Bonus ------- High Alert Combat Kills 79 Cogmind --------- Core Integrity 169/550 Matter 6/300 Energy 100/100 System Corruption 1% Temperature Cool (0) Movement Core (400) Ox7 Location -8/Materials Parts ------- > --- POWER (2) -------- (None) > --- PROPULSION (3) --- (None) > --- UTILITY (3) ------ Large Storage Unit Improved Signal Interpreter > --- WEAPON (3) ------- Rocket Launcher > --- INVENTORY (15) --- Light Deuterium Engine Machine Analyzer Visual Processing Unit Improved Sensor Array Rocket Launcher Improved Datajack Peak State ------------ > --- POWER ------------ Light Nuclear Core Light Angular Momentum Engine > --- PROPULSION ------- Light Treads Light Treads > --- UTILITY ---------- Large Storage Unit Advanced Weight Redist. System Improved Signal Interpreter > --- WEAPON ----------- Heavy Assault Cannon Improved Grenade Launcher > --- INVENTORY -------- Light Deuterium Engine Light Nuclear Core Advanced Treads Compact Wheel Compact Wheel Machine Analyzer Visual Processing Unit Improved Sensor Array Rocket Launcher Rocket Launcher Rocket Launcher Improved Datajack [Rating: 28] Favorites ----------- Power Ion Engine Engine Ion Engine Power Core Light Nuclear Core Propulsion Light Treads Treads Light Treads Wheel Compact Wheel Utility Large Storage Unit Device Advanced Weight Redist. System Storage Large Storage Unit Processor Improved Signal Interpreter Weapon Heavy Assault Cannon Ballistic Gun Light Assault Rifle Ballistic Cannon Heavy Assault Cannon Launcher Improved Grenade Launcher Special Melee Weapon Improved Datajack Build | -11 -10 -9 -8 ------- Run | Yrd Mat Mat Mat Slots Evolved 4 | . . 2 2 Power 1 | . . . 1 Propulsion 1 | . . 1 . Utility 1 | . . 1 . Weapon 1 | . . . 1 Parts Attached 32 | 6 4 4 18 Power 5 | 1 . . 4 Engine 3 | 1 . . 2 Core 2 | . . . 2 Reactor . | . . . . Propulsion 9 | 2 . 1 6 Treads 7 | 2 . 1 4 Leg . | . . . . Wheel 2 | . . . 2 Hover . | . . . . Flight . | . . . . Utility 6 | 1 2 2 1 Device 1 | . . 1 . Storage 2 | 1 1 . . Processor 3 | . 1 1 1 Hackware . | . . . . Protection . | . . . . Artifact . | . . . . Weapon 12 | 2 2 1 7 Energy Gun . | . . . . Energy Cannon . | . . . . Ballistic Gun 2 | 2 . . . Ballistic Cannon 5 | . 2 1 2 Launcher 4 | . . . 4 Special Weapon . | . . . . Impact Weapon . | . . . . Slashing Weapon . | . . . . Piercing Weapon . | . . . . Special Melee Weapon 1 | . . . 1 Unidentified Prototypes . | . . . . Parts Lost 13 | . . . 13 Power 4 | . . . 4 Propulsion 4 | . . . 4 Utility 1 | . . . 1 Weapon 4 | . . . 4 Highest Loss Streak 4 | . . . 4 To Critical Strikes . | . . . . Average Backups 9 | 1 9 9 9 Power 1 | . 1 1 1 Propulsion . | . . . 1 Utility 1 | . . 1 2 Weapon 4 | . 6 6 3 Tool/Special . | . . . . Unused Backups 10 | 1 . 4 5 Power 1 | . . . 1 Propulsion 1 | 1 . . . Utility 3 | . . . 3 Weapon 4 | . . 3 1 Tool/Special 1 | . . 1 . Average Slot Usage (%) 84 | . 95 86 78 Engine 12 | . 14 11 11 Core 1 | . . . 1 Treads 25 | . 28 28 22 Device 5 | . . 8 7 Storage 10 | . 14 11 9 Processor 9 | . 9 13 9 Ballistic Gun 3 | . 12 . . Ballistic Cannon 11 | . 15 13 8 Launcher 4 | . . . 7 Peak Build Rating 28 | 6 12 17 28 Average Rating 17 | 4 9 15 23 On Entrance 8 | . 6 12 17 Avg Prop Armor Cover (%) . | . . . . Naked Turns . | . . . . Heaviest Build 50 | 12 33 37 50 Greatest Support 69 | 40 40 69 69 Greatest Overweight (x) 9 | 1 . . 9 Average Overweight (x) . | . . . . Largest Inventory Capacity 15 | 8 15 15 15 Average Capacity 14 | 7 14 15 15 Most Carried 13 | 5 13 13 13 Average Carried 9 | 1 9 11 10 Final Capacity 15 | 8 15 15 15 Final Carried 13 | 2 13 11 6 Class Distribution -------------------- 61% | Mutant 38% | Gunner Dominant Class ---------------- Mutant | -10/Materials Mutant | -9/Materials Gunner | -8/Materials Resources | -11 -10 -9 -8 ----------- Run | Yrd Mat Mat Mat Matter Collected 1285 | 213 165 52 855 Remotely . | . . . . Salvage Created 1301 | . 129 114 1058 Parts 90 | . 7 10 73 Haulers Intercepted 3 | . 1 . 2 Recyclers Shooed . | . . . . Parts Field Recycled . | . . . . Retrieved Matter . | . . . . Parts Self-Destructed . | . . . . Prevented . | . . . . Parts Restored . | . . . . Kills | -11 -10 -9 -8 ------- Run | Yrd Mat Mat Mat Combat Hostiles Destroyed 36 | . 3 4 29 Melee 1 | . . . 1 Cannons 24 | . 3 4 17 AOE 11 | . . . 11 Classes Destroyed 13 | . 3 1 9 Worker 2 | . . . 2 Builder 5 | . . . 5 Tunneler 1 | . . . 1 Hauler 3 | . 1 . 2 Recycler 1 | . . . 1 Watcher 4 | . 1 1 2 Swarmer 3 | . . . 3 Grunt 19 | . 3 1 15 Brawler 1 | . . . 1 Duelist 1 | . . . 1 Sentry 8 | . . 3 5 Specialist 2 | . . . 2 Hunter 2 | . . . 2 Best Kill Streak 7 | . 3 2 7 Combat Bots Only 4 | . 3 1 4 Max Kills in Single Turn 3 | . 1 1 3 Gunslinging . | . . . . Exploded 1 | . . . 1 Melee 1 | . . . 1 Uniques/NPCs Destroyed . | . . . . Combat | -11 -10 -9 -8 -------- Run | Yrd Mat Mat Mat Hostile Shots Fired 240 | . 8 19 213 Missed 65 | . 1 5 59 Hits 175 | . 7 14 154 Melee 2 | . . . 2 Projectile 173 | . 7 14 152 Critical Strikes 3 | . . . 3 Damage Taken 2702 | . 76 191 2435 Core 407 | . 11 15 381 Absorbed by Shields . | . . . . Core Remaining (%) 97 | 100 95 96 . Volleys Fired 118 | . 12 18 88 Largest 2 | . 2 2 2 Hottest 86 | . 66 66 86 Shots Fired 151 | . 24 21 106 Gun 6 | . 6 . . Cannon 121 | . 18 21 82 Launcher 24 | . . . 24 Special . | . . . . Kinetic 127 | . 24 21 82 Thermal . | . . . . Explosive 24 | . . . 24 Electromagnetic . | . . . . Robot Hit Streak 14 | . 3 9 14 Robot Miss Streak 3 | . 3 2 3 Penetration Max 1 | . . . 1 Secondary Targets . | . . . . Shots Hit Robots 89 | . 11 15 63 Core Hits 63 | . 6 5 52 Critical Kills . | . . . . Critical Parts Destroyed . | . . . . Critical Strikes 13 | . . 2 11 Blast 13 | . . 2 11 Melee Attacks 2 | . . . 2 Impact . | . . . . Slashing . | . . . . Piercing . | . . . . Sneak Attacks 2 | . . . 2 Combat Hostiles . | . . . . Follow-up Attacks . | . . . . Damage Inflicted 5530 | . 208 605 4717 Guns 20 | . 20 . . Cannons 3622 | . 188 588 2846 Explosions 1831 | . . . 1831 Melee . | . . . . Ramming 57 | . . 17 40 Kinetic 3642 | . 208 588 2846 Thermal . | . . . . Explosive 1831 | . . . 1831 Electromagnetic . | . . . . Impact . | . . . . Slashing . | . . . . Piercing . | . . . . Highest Corruption 1 | . . . 1 Average Corruption 1 | . . . 1 Corruption Purged . | . . . . Corruption Blocked . | . . . . Effects 4 | . . . 4 Message Errors 2 | . . . 2 Matter Fused 1 | . . . 1 Data Loss (minor) 1 | . . . 1 Overload Shots . | . . . . Overflow Damage 425 | . . 55 370 Projectiles 286 | . . 53 233 Explosions 137 | . . . 137 Melee 2 | . . 2 . Knockbacks 19 | . 1 1 17 Impact . | . . . . Kinetic 17 | . 1 1 15 Secondary 2 | . . . 2 Self-Inflicted Damage 360 | . . . 360 Shots 9 | . . . 9 Rammed 9 | . . 1 8 Targets Rammed 10 | . . 1 9 Kicked . | . . . . Crushed 1 | . . . 1 Highest Temperature 202 | . 84 26 202 Average Temperature 32 | . 38 7 36 Received Heat Transfer 948 | . 42 60 846 Effects 1 | . . . 1 Interference 1 | . . . 1 Siege Activations . | . . . . Martial Activations . | . . . . Shielding Activations . | . . . . Robots Disrupted . | . . . . Combat Hostiles . | . . . . Robots Corrupted . | . . . . Combat Hostiles . | . . . . Parts Fried . | . . . . Impact Corruptions 1 | . . 1 . Robots Melted . | . . . . Combat Hostiles . | . . . . Parts Melted . | . . . . Heat Transferred . | . . . . Parts Sabotaged . | . . . . Parts Stolen . | . . . . Parts Stripped . | . . . . Power Chain Reactions . | . . . . Alert | -11 -10 -9 -8 ------- Run | Yrd Mat Mat Mat Maximum Alert Level 2 | . . . 2 Low Security (%) 54 | 100 100 100 18 Level 1 30 | . . . 55 Level 2 14 | . . . 25 Level 3 . | . . . . Level 4 . | . . . . Level 5 . | . . . . High Security . | . . . . Max Security . | . . . . Peak Influence 656 | . 73 53 656 Initial 16 | . . 16 8 Average 178 | . 6 19 314 Influence Increases 1525 | . 87 154 1284 Destroy 0b10 Robot/C 720 | . 60 80 580 Destroy 0b10 Robot/NC 80 | . 10 5 65 Destroy Leader 194 | . 14 32 148 Successful Hack 5 | . . . 5 Disable Machine 135 | . . 15 120 Destroy Structure 241 | . 3 7 231 Lose Combat Pursuer 150 | . . 15 135 Influence Decreases 883 | . 46 175 662 Entered New Map 37 | . . 25 12 Time Decay 716 | . 46 150 520 Lost Part 130 | . . . 130 Squads Dispatched 6 | . 1 . 5 Investigation 2 | . 1 . 1 Extermination . | . . . . Reinforcement 4 | . . . 4 Assault . | . . . . Garrison . | . . . . Intercept . | . . . . Searches Triggered . | . . . . Construction Impeded 2 | . . . 2 Haulers Reinforced . | . . . . Active Scanning Responses . | . . . . Cargo Convoy Interrupts . | . . . . Stealth | -11 -10 -9 -8 --------- Run | Yrd Mat Mat Mat Distress Signals 7 | . 1 2 4 Communications Jammed . | . . . . Distress Signals . | . . . . Times Spotted 63 | . 4 10 49 Peak Tracking Total 6 | . 2 4 6 Tactical Retreats 9 | . . 1 8 Traps | -11 -10 -9 -8 ------- Run | Yrd Mat Mat Mat Traps Triggered 2 | . 1 . 1 Indirectly . | . . . . Trap Hack Attempts . | . . . . Triggered . | . . . . Disarmed . | . . . . Reprogrammed . | . . . . Reused . | . . . . Traps Extracted . | . . . . Installed . | . . . . Triggered . | . . . . Machines | -11 -10 -9 -8 ---------- Run | Yrd Mat Mat Mat Machines Disabled 9 | . . 1 8 Max in Single Turn 2 | . . 1 2 Machines Repaired . | . . . . Machines Dismantled . | . . . . Machines Sabotaged . | . . . . Overloaded Fab Kills . | . . . . Hacking | -11 -10 -9 -8 --------- Run | Yrd Mat Mat Mat Machines Accessed 7 | . 2 . 5 Terminals 4 | . 2 . 2 Fabricators . | . . . . Repair Stations 2 | . . . 2 Recycling Units 1 | . . . 1 Scanalyzers . | . . . . Garrison Access . | . . . . Total Hacks 23 | . 5 . 18 Successful 17 | . 4 . 13 Failed 6 | . 1 . 5 Catastrophic . | . . . . Database Lockouts . | . . . . Manual . | . . . . Terminals 16 | . 5 . 11 Fabricators . | . . . . Repair Stations 5 | . . . 5 Recycling Units 2 | . . . 2 Scanalyzers . | . . . . Garrison Access . | . . . . Terminal Hacks 12 | . 4 . 8 Record 2 | . . . 2 Prototype ID Bank 1 | . 1 . . Terminal Index 1 | . . . 1 Alert Level 2 | . . . 2 Dispatch Records 1 | . 1 . . Maintenance Status 1 | . . . 1 Hauler Manifests 2 | . 1 . 1 Zone Layout 2 | . 1 . 1 Fabricator Hacks . | . . . . Repair Station Hacks 3 | . . . 3 Scan Component 2 | . . . 2 Repair 1 | . . . 1 Recycling Unit Hacks 2 | . . . 2 Retrieve Matter 2 | . . . 2 Scanalyzer . | . . . . Garrison Access Hacks . | . . . . Unauthorized Hacks . | . . . . Terminals . | . . . . Fabricators . | . . . . Repair Stations . | . . . . Recycling Units . | . . . . Scanalyzers . | . . . . Garrison Access . | . . . . Data Cores Recovered . | . . . . Used . | . . . . Hacking Detections 2 | . 1 . 1 Full Trace Events 1 | . . . 1 Feedback Events . | . . . . Feedback Blocked . | . . . . Robot Schematics Acquired . | . . . . Robots Built . | . . . . Authchips . | . . . . Time . | . . . . Total Robot Build Rating . | . . . . Part Schematics Acquired . | . . . . Parts Built . | . . . . Authchips . | . . . . Time . | . . . . Total Part Build Rating . | . . . . Part Studies Acquired . | . . . . Parts Repaired . | . . . . Time 38 | . . . 38 Parts Recycled . | . . . . Recycled Matter . | . . . . Retrieved Matter 41 | . . . 41 Retrieved Components . | . . . . Parts Scanalyzed . | . . . . Part Schematics Acquired . | . . . . Parts Damaged . | . . . . Bothacking | -11 -10 -9 -8 ------------ Run | Yrd Mat Mat Mat Used RIF Installer . | . . . . Robots Hacked 1 | . . . 1 Non-combat 1 | . . . 1 Combat . | . . . . Robot Hacks Applied 1 | . . . 1 find_recycling 1 | . . . 1 Relay Couplers Released . | . . . . Fabnet Peak Effective % . | . . . . Robots Rewired . | . . . . Allies Hacked . | . . . . Hacks Repelled . | . . . . Allies | -11 -10 -9 -8 -------- Run | Yrd Mat Mat Mat Total Allies . | . . . . Largest Group . | . . . . Highest-Rated Group . | . . . . Highest-Rated Ally . | . . . . Total Orders . | . . . . Ally Attacks . | . . . . Total Damage . | . . . . Kills . | . . . . Allies Corrupted . | . . . . Allies Melted . | . . . . Intel | -11 -10 -9 -8 ------- Run | Yrd Mat Mat Mat Active Infowar (turns) . | . . . . Robot Analysis Total . | . . . . Derelict Logs Recovered . | . . . . Drone Launches . | . . . . Drone Recoveries . | . . . . Exploration | -11 -10 -9 -8 ------------- Run | Yrd Mat Mat Mat Turns Passed 2613 | 111 690 365 1447 Spaces Moved 1295 | 91 395 148 661 Core 49 | 45 . . 4 Treads 1246 | 46 395 148 657 Legs . | . . . . Wheels . | . . . . Hover . | . . . . Flight . | . . . . Fastest Speed 50 | 50 160 160 160 Average Speed 161 | 106 160 160 170 Slowest Speed 500 | 160 160 160 500 Overloaded Moves . | . . . . Propulsion Burnouts . | . . . . Robots Hopped . | . . . . Potential Cave-ins . | . . . . Cave-ins Triggered . | . . . . Exploration Rate (%) 30 | 6 47 15 55 Regions Visited 3 Branch Regions . Pre-discovered Areas . | . . . . Known Exits Taken 1 | . . 1 . Unknown Exits Taken 2 | 1 1 . . Scrap Searched . | . . . . Spaces Dug 47 | . . . 47 Terrain Destroyed 285 | . 3 8 274 Melee . | . . . . Projectile 49 | . 3 8 38 AOE 236 | . . . 236 Terrain Rammed . | . . . . Walls Destroyed . | . . . . Machines Disabled . | . . . . Actions | -11 -10 -9 -8 --------- Run | Yrd Mat Mat Mat Total 1616 | 105 432 252 827 Wait 93 | . 5 67 21 Move 1292 | 90 394 147 661 Hop . | . . . . Pick Up 42 | 8 13 6 15 Fast Attach 1 | 1 . . . Attach 28 | 5 4 4 15 Detach 6 | . 3 1 2 Swap 6 | . . . 6 Drop 18 | 1 1 8 8 Fire 118 | . 12 18 88 Melee 2 | . . . 2 Ram . | . . . . Kick . | . . . . Crush 10 | . . 1 9 Escape Stasis . | . . . . Rewire . | . . . . Trap . | . . . . Miscellaneous . | . . . . Route ------- -11/Scrapyard -10/Materials (discovered 3 exits: [*Mat] / [*Min x2]) -9/Materials -8/Materials History --------- Turn | Location | Event 3 | -11/Scrapyard | Discovered new exit (range 15) 112 | -11/Scrapyard | Entered Materials 113 | -10/Materials | Met a group of wandering Federalists 316 | -10/Materials | Build established: Mutant 431 | -10/Materials | Discovered new exit (range 10) 458 | -10/Materials | Discovered new exit (range 20) 613 | -10/Materials | Discovered new exit (range 15) 802 | -10/Materials | Entered another Materials area 802 | -9/Materials | Evolved 2 slots: Propulsion x1, Utility x1 1138 | -9/Materials | Discovered new exit (range 3) 1164 | -9/Materials | Identified exit to Materials 1167 | -9/Materials | Entered another Materials area 1167 | -8/Materials | Evolved 2 slots: Power x1, Weapon x1 1999 | -8/Materials | Build established: Gunner 2408 | -8/Materials | Lost 4 parts (1p1n1u1w) 2591 | -8/Materials | Core integrity fell below 50% 2614 | -8/Materials | Self-destructed Last Messages --------------- Adv. Treads destroyed. G-47 Trooper destroyed. U-05 Engineer builds a Wall. U-05 Engineer lays Concrete. U-05 Engineer builds a Wall. Lgt. Treads destroyed. G-47 Trooper destroyed. U-05 Engineer lays Concrete. The unstable cave ceiling collapses. U-05 Engineer lays Concrete. R-06 Scavenger collects Imp. Heat Sink. U-05 Engineer lays Concrete. U-05 Engineer builds a Wall. K-01 Serf collects debris. U-05 Engineer lays Concrete. Rocket Launcher destroyed. K-01 Serf collects debris. U-05 Engineer lays Concrete. U-05 Engineer builds a Door. U-05 Engineer lays Concrete. Map ----- +----------------------------------------------------+ | ! # # ]# ## # ## ## | | ! ! # # # ## ######### #? | | "Y" # # # ## #?##????# #? | | """ ! + # / # ## ###"##### #? | | ####/##### ########### ######## ## #? | | # #### #?????????###??????# ## ## | | + #??????????????????# T ## | | # = ########??????????????????# ! ## ## | | ######????????????????????????# ## ## | | ######????????????????????????# ## ## | | #?????????????????????????????# ## ## | | ###?????????????????????????????# """ % ## ## | | ????????????????##????#######???# """ ] ## ## | | ????????????????# ?#### ###?# """ ## ## | | ?????????????#### ## "# #### ### ## ## | | ?????????????# # # # %] | | ?????????????# " [ # # """ # % | | ?????????????# !## # """ # % | | ?????????????# [ # """ #%= | | ????????????## # % %!=% %! | | ????????????# # # ! * ## | | ????????????# + #####/#|* | | ????????????# # #? ## ## | | ?????????#### = # # # % ####? | | ????### #############^^^# #???? | | ??? g @ # #???? | | ??? %= g u + #???? | | ??? u r w # """ #???? | | ??? ## #k######+######### # """ #???? | | ????? ? # ???# # ?# # ! """ #???? | | ??????????????# """ # """"" #? + #???? | | ??????????????# """ # ""T"" #? ######?###???? | | ??????????????# """ # #? #????????????? | | ??????????????# # ""???"" #? #????????????? | | ??????????????# """ # ""????? #??#????????????? | | ??????????????# """ # ????????#???????????????? | | ??????????????# """ # ????????????????????????? | | ??????????????# ##????????????????????????? | | ??????????????#####?####?????????????????????????? | | ?????????????????????????????????????????????????? | | ?????????????????????????????????????????????????? | | ?????????????????????????????????????????????????? | | ?????????????????????????????????????????????????? | | ?????????????????????????????????????????????????? | | ?????????????????????????????????????????????????? | | ?????????????????????????????????????????????????? | | ?????????????????????????????????????????????????? | | | | | | | +----------------------------------------------------+ Best States ------------- Heat Dissipation 31 Energy Generation 27 Energy Capacity 300 Matter Stores 300 Matter Capacity 300 Sight Range 16 Terrain Scan Density 85 Additional Mass Support 9 Evasion (%) 50 Recoil Reduction 3 Item Schematics ----------------- None Robot Schematics ------------------ None Fabricated ------------ Nothing Repaired ---------- Nothing Studied --------- None Alien Tech Used ----------------- None Achievements -------------- Bumper Bots DATA ERROR: Steam Global Achievement% For Emergencies Only Heavy Suspicion Junior Dev Organ Harvest Overwhelming There's More Where That Came From Challenges ------------ None Game ------ Seed BackupDimensionalAutocannon Manual? 0 Play Time 00:21:04 Cumulative 11.1 hours Start 2025.10.23 @ 16:21:00 End 2025.10.23 @ 16:44:41 Sessions 1 Manual Loads 0 Difficulty Rogue Special Mode None Game No. 41 Rogue 41 Adventurer 0 Explorer 0 Win Type - Total 0 Types 0/0/0/0/0/0/0/0/0/0 Lore% 6 Gallery% 14 Achievement% 9 Wizard Run 0 Options --------- Layout 1 ASCII 0 Keyboard 0 Movement Arrows Keybinds 0 Fullscreen 1 Font 24/Smallcaps Map View 50x35 Zoom Use 0% Tactical HUD 0 Map Filters NONE Filters NONE Steam 1 RUN: ed8ac857-5e48-4244-86d6-78cc5f0f497c